bitfinex/quotes_BTCUSD_20220101
["timestamp","ask_amount","ask_price","bid_price","bid_amount"]
[1641070898128,1.11356761,47440.0,47439.0,0.64414467]
[1641070898328,1.12517236,47440.0,47439.0,0.64414467]
[1641070898527,1.10362777,47440.0,47439.0,0.64414467]
[1641070899127,1.66040334,47440.0,47439.0,0.64414467]
[1641070899427,2.00183618,47440.0,47439.0,0.64414467]
[1641070900331,2.02248172,47440.0,47439.0,0.64414467]
[1641070900528,2.01318731,47440.0,47439.0,0.64414467]
[1641070901363,2.02466071,47440.0,47439.0,0.64414467]
[1641070901564,2.00642676,47440.0,47439.0,0.64414467]
[1641070902365,1.87116505,47440.0,47439.0,0.64414467]
[1641070902564,1.86062338,47440.0,47439.0,0.64414467]
[1641070903165,1.86068495,47440.0,47439.0,0.64414467]
[1641070903465,1.86311112,47440.0,47439.0,0.64414467]
[1641070903665,2.01040367,47440.0,47439.0,0.64414467]
[1641070904267,2.11046524,47440.0,47439.0,0.64414467]
[1641070904522,2.17134386,47440.0,47439.0,0.64414467]
[1641070905325,2.23098723,47440.0,47439.0,0.64414467]
[1641070905527,2.21529796,47440.0,47439.0,0.64414467]
[1641070906225,2.21535953,47440.0,47439.0,0.64414467]
[1641070906424,2.22476106,47440.0,47439.0,0.64414467]
[1641070906626,2.21611099,47440.0,47439.0,0.64414467]
[1641070907228,2.25831099,47440.0,47439.0,0.64414467]
[1641070907428,2.25837256,47440.0,47439.0,0.64414467]
[1641070907628,2.25930429,47440.0,47439.0,0.64414467]
[1641070908031,2.28053822,47440.0,47439.0,0.64414467]
[1641070908296,2.27113669,47440.0,47439.0,0.64414467]
[1641070908482,2.28199278,47440.0,47439.0,0.64414467]
[1641070908683,2.26317044,47440.0,47439.0,0.64414467]
[1641070909484,2.27298445,47440.0,47439.0,0.64414467]
[1641070909684,2.26312166,47440.0,47439.0,0.64523488]
[1641070910386,2.27229568,47440.0,47439.0,0.64523488]
[1641070910589,2.27229568,47440.0,47439.0,0.64632509]
[1641070910787,2.26347497,47440.0,47439.0,0.64632509]
[1641070911390,2.27278298,47440.0,47439.0,0.64632509]
[1641070911691,2.26614369,47440.0,47439.0,0.6474153]
[1641070912511,2.27534417,47440.0,47439.0,0.6474153]
[1641070912709,2.2762759,47440.0,47439.0,0.64850551]
[1641070913212,2.25782898,47440.0,47439.0,0.64850551]
[1641070913410,2.27920617,47440.0,47439.0,0.64850551]
[1641070913811,2.2801379,47440.0,47439.0,0.64959572]
[1641070914510,2.30134857,47440.0,47439.0,0.64959572]
[1641070914711,2.27990981,47440.0,47439.0,0.64959572]
[1641070915011,2.2823214,47440.0,47439.0,0.65068593]
[1641070915773,2.2823214,47440.0,47439.0,0.65177614]
[1641070915973,2.30226305,47440.0,47439.0,0.65177614]
[1641070916873,2.26210403,47440.0,47439.0,0.65286635]
[1641070917072,2.2810146,47440.0,47439.0,0.65286635]
[1641070917473,2.2993463,47440.0,47439.0,0.65286635]
[1641070917672,2.28043573,47440.0,47439.0,0.65286635]
[1641070917872,2.28043573,47440.0,47439.0,0.65395656]
[1641070918474,2.30169636,47440.0,47439.0,0.65395656]
[1641070918675,2.28101464,47440.0,47439.0,0.23211256]
[1641070918874,2.28095307,47440.0,47439.0,0.23320277]
[1641070919274,1.03,47439.0,47430.0,0.58386304]
[1641070919540,0.10546369,47435.0,47430.0,0.58386304]
[1641070919741,0.05273169,47435.0,47431.0,0.00014607]
[1641070919944,0.15273169,47435.0,47431.0,0.00014607]
[1641070920143,0.71278239,47432.0,47431.0,0.00014607]
[1641070920543,0.86278239,47432.0,47431.0,0.00014607]
[1641070921144,0.86278239,47432.0,47431.0,0.00123628]
[1641070921446,0.87293861,47432.0,47431.0,0.00123628]
[1641070921644,0.16256781,47432.0,47431.0,0.00123628]
[1641070921847,0.16262938,47432.0,47431.0,0.00123628]
[1641070922045,0.01262938,47432.0,47431.0,0.00123628]
[1641070922246,0.01262938,47432.0,47431.0,0.00232649]
[1641070922650,0.00340489,47432.0,47431.0,0.00232649]
[1641070922848,0.00346646,47432.0,47431.0,0.00232649]
[1641070923273,0.00346646,47432.0,47431.0,0.0034167]
[1641070923470,0.58028093,47432.0,47431.0,0.0034167]
[1641070923667,1.27430531,47432.0,47431.0,0.0034167]
[1641070923868,2.48813976,47432.0,47431.0,0.0034167]
[1641070924068,1.90494548,47432.0,47430.0,0.00109021]
[1641070924267,2.47828967,47431.0,47430.0,0.00109021]
[1641070924465,2.80231735,47431.0,47430.0,0.00109021]
[1641070924669,1.62892,47430.0,47429.0,16.36833348]
[1641070924970,2.46819731,47430.0,47429.0,16.36833348]
[1641070925168,2.56819731,47430.0,47429.0,15.94636748]
[1641070925570,2.58860205,47430.0,47429.0,15.94636748]
[1641070925770,2.58953378,47430.0,47429.0,15.52439648]
[1641070925974,2.58953378,47430.0,47429.0,15.52433491]
[1641070926172,3.65185561,47430.0,47429.0,15.10236491]
[1641070926573,3.6777495,47430.0,47429.0,15.10236491]
[1641070926770,3.65975635,47430.0,47429.0,14.68037591]
[1641070927010,4.15975635,47430.0,47429.0,14.68037591]
[1641070927209,4.15975635,47430.0,47429.0,14.25840491]
[1641070927609,4.18054479,47430.0,47429.0,14.25840491]
[1641070927810,4.18147652,47430.0,47429.0,13.83642991]
[1641070928412,4.18147652,47430.0,47429.0,13.41445491]
[1641070928614,4.20194981,47430.0,47429.0,13.41445491]
[1641070928813,4.68963023,47430.0,47429.0,13.41445491]
[1641070929112,4.68963023,47430.0,47429.0,12.99247991]
[1641070929512,4.70788158,47430.0,47429.0,12.57050191]
[1641070929711,4.68740829,47430.0,47429.0,12.57050191]
[1641070929912,4.68981988,47430.0,47429.0,12.57050191]
[1641070930214,4.694673,47430.0,47429.0,12.14849191]
[1641070930613,4.694673,47430.0,47429.0,10.04778279]
[1641070930614,4.71282328,47430.0,47429.0,10.04778279]
[1641070930870,4.69550366,47430.0,47429.0,10.04778279]
[1641070931174,4.69550366,47430.0,47429.0,9.62579279]
[1641070931671,4.69550366,47430.0,47429.0,9.20380679]
[1641070931868,4.69643539,47430.0,47429.0,9.20380679]
[1641070932268,4.71472644,47430.0,47429.0,8.78182279]
[1641070932470,4.69657616,47430.0,47429.0,8.78182279]
[1641070932671,4.69970018,47430.0,47429.0,8.35982179]
[1641070933073,5.65797888,47430.0,47429.0,8.35982179]
[1641070933372,5.65797888,47430.0,47429.0,7.93783479]
[1641070933773,5.65466987,47430.0,47429.0,7.93783479]
[1641070933971,5.65708146,47430.0,47429.0,7.93783479]
[1641070934173,5.65708146,47430.0,47429.0,7.51585179]
[1641070934617,4.72117827,47430.0,47429.0,7.51585179]
[1641070934818,4.0545283,47430.0,47429.0,7.51585179]
[1641070935119,4.05693989,47430.0,47429.0,7.09386579]
[1641070935316,3.55693989,47430.0,47429.0,7.09386579]
[1641070935717,3.5569538,47430.0,47429.0,6.67187879]
[1641070936116,3.55788553,47430.0,47429.0,6.24988979]
[1641070936516,3.57686812,47430.0,47429.0,6.24988979]
[1641070936719,3.55689029,47430.0,47429.0,6.24988979]
[1641070937218,3.55930188,47430.0,47429.0,6.24988979]
[1641070937418,4.51516899,47430.0,47429.0,6.24988979]
[1641070938266,3.58111457,47430.0,47429.0,6.24988979]
[1641070938462,3.56213198,47430.0,47429.0,5.82789779]
[1641070938662,4.53626889,47430.0,47429.0,4.14923006]
[1641070938865,4.51538793,47430.0,47429.0,4.14923006]
[1641070939264,4.51779952,47430.0,47429.0,4.14923006]
[1641070939463,3.56193241,47430.0,47429.0,4.14923006]
[1641070939664,3.58054994,47430.0,47429.0,4.14923006]
[1641070939967,3.56228014,47430.0,47429.0,4.14923006]
[1641070940166,3.56321187,47430.0,47429.0,4.14923006]
[1641070940368,2.26948154,47430.0,47429.0,4.13656667]
[1641070940665,2.92607765,47430.0,47429.0,4.13656667]
[1641070940865,2.90746012,47430.0,47429.0,4.13656667]
[1641070941267,2.90839185,47430.0,47429.0,4.13656667]
[1641070941666,2.92833892,47430.0,47429.0,4.13656667]
[1641070941865,2.90837456,47430.0,47429.0,4.13656667]
[1641070942127,3.87837456,47430.0,47429.0,3.71457667]
[1641070942327,3.87930629,47430.0,47429.0,3.71457667]
[1641070942630,3.48225024,47430.0,47429.0,3.71457667]
[1641070942926,3.46230317,47430.0,47429.0,3.29255567]
[1641070943125,3.96230317,47430.0,47429.0,3.29255567]
[1641070943325,3.4132349,47430.0,47429.0,2.87055567]
[1641070943927,3.4132349,47430.0,47429.0,2.44856767]
[1641070944331,3.43722302,47430.0,47429.0,2.44856767]
[1641070944629,3.41803821,47430.0,47429.0,2.44856767]
[1641070944831,3.43955156,47430.0,47429.0,2.44856767]
[1641070945031,3.41797503,47430.0,47429.0,2.44856767]
[1641070945430,3.42038662,47430.0,47429.0,2.44856767]
[1641070945630,3.44048088,47430.0,47429.0,2.44856767]
[1641070945874,3.41896753,47430.0,47429.0,2.44856767]
[1641070946073,3.41896753,47430.0,47429.0,2.02656267]
[1641070946473,3.41989926,47430.0,47429.0,2.02656267]
[1641070946677,3.44038664,47430.0,47429.0,2.02656267]
[1641070947074,3.44038664,47430.0,47429.0,2.0265011]
[1641070947475,3.44131837,47430.0,47429.0,0.34781918]
[1641070947678,3.46259922,47430.0,47429.0,0.34781918]
[1641070947878,3.42201758,47430.0,47429.0,0.34781918]
[1641070948576,3.42442917,47430.0,47429.0,0.34781918]
[1641070948776,3.42262134,47430.0,47429.0,0.34781918]
[1641070949280,3.42783104,47430.0,47429.0,0.34781918]
[1641070949717,3.446365,47430.0,47429.0,0.34781918]
[1641070949919,3.42689198,47430.0,47429.0,0.34781918]
[1641070950116,3.42596025,47430.0,47429.0,0.34781918]
[1641070950618,3.44632295,47430.0,47429.0,0.34781918]
[1641070950817,3.42778899,47430.0,47429.0,0.34781918]
[1641070951217,3.42778899,47430.0,47429.0,0.34688745]
[1641070951621,3.4458317,47430.0,47429.0,0.34688745]
[1641070951824,3.425469,47430.0,47429.0,0.34688745]
[1641070952722,3.4435851,47430.0,47423.0,0.00011]
[1641070952920,0.20004155,47425.0,47423.0,0.00011]
[1641070953120,0.52841255,47424.0,47423.0,0.00011]
[1641070953386,1.09390942,47424.0,47423.0,0.00011]
[1641070953586,1.19390942,47424.0,47423.0,0.00025606]
[1641070954388,1.95390942,47424.0,47423.0,0.00025606]
[1641070954789,1.97225637,47424.0,47423.0,0.00025606]
[1641070955288,2.68110128,47424.0,47423.0,0.00025606]
[1641070955689,2.70053615,47424.0,47423.0,0.00025606]
[1641070955888,2.6821892,47424.0,47423.0,0.00025606]
[1641070956089,1.97334429,47424.0,47423.0,0.00025606]
[1641070956688,1.99305056,47424.0,47423.0,0.00025606]
[1641070957017,1.97361569,47424.0,47423.0,0.00025606]
[1641070957817,2.7035444,47424.0,47423.0,0.00025606]
[1641070958117,2.68383813,47424.0,47423.0,0.00025606]
[1641070958719,2.70504563,47424.0,47423.0,0.00025606]
[1641070958919,2.68375963,47424.0,47423.0,0.00025606]
[1641070959119,1.92375963,47424.0,47423.0,0.00025606]
[1641070959520,1.21511692,47424.0,47423.0,0.00025606]
[1641070959720,1.23536124,47424.0,47423.0,0.00025606]
[1641070960020,1.21415374,47424.0,47423.0,0.00025606]
[1641070960220,2.0412487,47424.0,47423.0,0.00025606]
[1641070960873,1.21534988,47424.0,47423.0,0.00025606]
[1641070961280,1.87534988,47424.0,47423.0,0.00025606]
[1641070961474,2.70244484,47424.0,47423.0,0.00025606]
[1641070962276,2.72268514,47424.0,47423.0,0.00025606]
[1641070962475,2.70124468,47424.0,47423.0,0.00025606]
[1641070962675,2.70124468,47424.0,47421.0,0.00022]
[1641070962676,2.93201184,47418.0,47414.0,8.90015741]
[1641070962877,0.0422,47417.0,47414.0,8.90015741]
[1641070963075,0.0422,47417.0,47415.0,0.00014606]
[1641070963274,0.33892,47416.0,47415.0,0.00014606]
[1641070963475,0.43112,47416.0,47415.0,0.00014606]
[1641070963676,0.58112,47416.0,47415.0,0.00014606]
[1641070964917,0.60084596,47416.0,47415.0,0.00014606]
[1641070965918,0.62256375,47416.0,47415.0,0.00014606]
[1641070966119,0.60283779,47416.0,47415.0,0.00014606]
[1641070966320,0.60769236,47416.0,47415.0,0.00014606]
[1641070966920,0.6266013,47416.0,47415.0,0.00014606]
[1641070967118,0.60488351,47416.0,47415.0,0.00014606]
[1641070967521,0.26596351,47416.0,47415.0,0.00014606]
[1641070967921,0.18674468,47416.0,47415.0,0.00014606]
[1641070968120,0.16783574,47416.0,47414.0,8.8952419]
[1641070968369,0.052749,47415.0,47414.0,8.8952419]
[1641070970870,0.75436201,47416.0,47414.0,8.8952419]
[1641070971071,0.70956037,47415.0,47414.0,8.8952419]
[1641070971475,0.76230937,47415.0,47414.0,8.8952419]
[1641070971874,0.82890037,47415.0,47414.0,8.8952419]
[1641070972133,0.11934,47415.0,47414.0,8.89283031]
[1641070972334,0.26934,47415.0,47414.0,8.89283031]
[1641070972536,0.16934,47415.0,47414.0,8.89283031]
[1641070973736,0.14980362,47415.0,47414.0,8.89283031]
[1641070974937,0.85936399,47415.0,47414.0,8.89283031]
[1641070975139,0.95936399,47415.0,47414.0,8.89283031]
[1641070975337,0.24980362,47415.0,47414.0,8.89283031]
[1641070975969,0.26919588,47415.0,47414.0,8.89283031]
[1641070976368,0.16919588,47415.0,47414.0,8.89283031]
[1641070977170,0.14980362,47415.0,47414.0,8.89283031]
[1641070977773,0.8594854,47415.0,47414.0,8.89283031]
[1641070978172,0.9594854,47415.0,47414.0,8.89283031]
[1641070979073,0.97782607,47415.0,47414.0,8.89283031]
[1641070979522,0.26814429,47415.0,47414.0,8.89283031]
[1641070979724,0.16814429,47415.0,47414.0,8.89283031]
[1641070979926,0.18985946,47415.0,47414.0,8.89283031]
[1641070980123,0.17151879,47415.0,47414.0,8.89283031]
[1641070981424,0.14980362,47415.0,47414.0,8.89283031]
[1641070981627,0.8593875,47415.0,47414.0,8.89283031]
[1641070982025,0.9593875,47415.0,47414.0,8.89283031]
[1641070982424,0.24980362,47415.0,47414.0,8.89283031]
[1641070983123,0.16982943,47415.0,47414.0,8.89283031]
[1641070983768,0.8791276,47415.0,47414.0,8.89283031]
[1641070984168,0.95910179,47415.0,47414.0,8.89283031]
[1641070985071,0.27070447,47415.0,47414.0,8.89283031]
[1641070985571,0.17070447,47415.0,47414.0,8.89283031]
[1641070985774,0.99779943,47415.0,47414.0,8.89283031]
[1641070986171,1.09779943,47415.0,47414.0,8.89283031]
[1641070987041,1.11837577,47415.0,47414.0,8.89283031]
[1641070987245,1.09747492,47415.0,47414.0,8.89283031]
[1641070987844,0.27037996,47415.0,47414.0,8.89283031]
[1641070988047,0.19162363,47415.0,47414.0,8.89283031]
[1641070988246,0.99814225,47415.0,47414.0,8.89283031]
[1641070988649,1.09814225,47415.0,47414.0,8.89283031]
[1641070989149,1.09624786,47415.0,47414.0,8.89276874]
[1641070990552,1.1178377,47415.0,47414.0,8.89276874]
[1641070990782,1.09848842,47415.0,47414.0,8.89276874]
[1641070990979,1.11932033,47415.0,47414.0,8.89276874]
[1641070991278,0.27063553,47415.0,47414.0,8.89276874]
[1641070991678,0.99773049,47415.0,47414.0,8.89276874]
[1641070992076,0.22843553,47415.0,47414.0,8.89276874]
[1641070992278,0.20760362,47415.0,47414.0,8.89276874]
[1641070993181,0.10760362,47415.0,47414.0,8.89183701]
[1641070993378,0.88469858,47415.0,47414.0,8.89183701]
[1641070993578,0.93469858,47415.0,47414.0,8.89183701]
[1641070993779,1.03469858,47415.0,47414.0,8.89183701]
[1641070993979,1.05502256,47415.0,47414.0,8.89183701]
[1641070995125,1.07383081,47415.0,47414.0,8.89183701]
[1641070995922,1.03469858,47415.0,47414.0,8.89183701]
[1641070996123,1.05595678,47415.0,47414.0,8.89183701]
[1641070997125,1.07724864,47415.0,47414.0,8.89183701]
[1641070997525,1.21358846,47415.0,47414.0,8.89183701]
[1641070998125,1.23359723,47415.0,47414.0,8.89183701]
[1641070998378,1.19104717,47415.0,47414.0,8.89183701]
[1641070999074,1.21038409,47415.0,47414.0,8.89183701]
[1641070999278,1.19037532,47415.0,47414.0,8.89183701]
[1641071000078,1.20946295,47415.0,47414.0,8.89183701]
[1641071000279,1.19012603,47415.0,47414.0,8.89183701]
[1641071001177,1.21180226,47415.0,47414.0,8.89183701]
[1641071001378,1.19271463,47415.0,47414.0,8.89183701]
[1641071002139,1.2125548,47415.0,47414.0,8.89183701]
[1641071002339,1.19087857,47415.0,47414.0,8.89183701]
[1641071003140,1.21275714,47415.0,47414.0,8.89183701]
[1641071003339,1.19291697,47415.0,47414.0,8.89183701]
[1641071004142,1.21288928,47415.0,47414.0,8.89183701]
[1641071004441,1.19101071,47415.0,47414.0,8.89183701]
[1641071005343,1.19296881,47415.0,47414.0,8.89183701]
[1641071006094,1.2113685,47415.0,47414.0,8.89183701]
[1641071006390,1.23943809,47415.0,47414.0,8.89183701]
[1641071007291,1.23957033,47415.0,47414.0,8.89183701]
[1641071008890,1.80657148,47415.0,47414.0,8.89183701]
[1641071009091,1.78803955,47415.0,47414.0,8.89183701]
[1641071009292,1.78979977,47415.0,47414.0,8.89183701]
[1641071010128,1.78979977,47415.0,47414.0,8.89177544]
[1641071010325,2.12871977,47415.0,47414.0,8.89177544]
[1641071010824,2.15050982,47415.0,47414.0,8.89177544]
[1641071011026,1.58174845,47415.0,47414.0,8.89177544]
[1641071011228,1.24282845,47415.0,47414.0,8.89177544]
[1641071011427,1.26343173,47415.0,47414.0,8.89177544]
[1641071011627,1.24164168,47415.0,47414.0,8.89177544]
[1641071012227,1.26247318,47415.0,47414.0,8.89177544]
[1641071012828,1.26247318,47415.0,47414.0,8.89169647]
[1641071013783,1.28193024,47415.0,47414.0,8.89169647]
[1641071013984,1.24049546,47415.0,47414.0,8.89169647]
[1641071014182,1.25916873,47415.0,47414.0,8.89076474]
[1641071014382,1.23971167,47415.0,47414.0,8.89076474]
[1641071015385,1.26141411,47415.0,47414.0,8.89076474]
[1641071015584,1.24274084,47415.0,47414.0,8.89076474]
[1641071016388,1.24139205,47415.0,47414.0,8.89076474]
[1641071017225,1.26125024,47415.0,47414.0,8.89076474]
[1641071017426,1.24089659,47415.0,47414.0,8.89076474]
[1641071018231,1.85060862,47415.0,47414.0,8.89076474]
[1641071018530,2.92704429,47415.0,47414.0,8.46868074]
[1641071018729,3.26596429,47415.0,47414.0,8.46868074]
[1641071018931,3.26596429,47415.0,47414.0,8.04658174]
[1641071019328,3.28742815,47415.0,47414.0,8.04658174]
[1641071019528,3.26815881,47415.0,47414.0,7.62448474]
[1641071019728,3.26939283,47415.0,47414.0,7.62448474]
[1641071019930,4.22525994,47415.0,47414.0,7.62448474]
[1641071020129,4.22525994,47415.0,47414.0,7.20238274]
[1641071020329,3.41668538,47415.0,47414.0,7.20238274]
[1641071020783,3.41668538,47415.0,47414.0,6.78028174]
[1641071020972,3.4379051,47415.0,47414.0,6.78028174]
[1641071021173,3.41644124,47415.0,47414.0,6.35817574]
[1641071021374,3.4373904,47415.0,47414.0,6.35817574]
[1641071021575,3.41617068,47415.0,47414.0,6.35817574]
[1641071021775,3.41617068,47415.0,47414.0,5.93606574]
[1641071022181,3.94337068,47415.0,47414.0,5.93606574]
[1641071022385,3.39474935,47415.0,47414.0,5.51393574]
[1641071022576,3.96380019,47415.0,47414.0,4.76526348]
[1641071022776,3.86900989,47415.0,47414.0,4.34310348]
[1641071022976,3.86900989,47415.0,47414.0,2.66392817]
[1641071023376,5.35302252,47415.0,47414.0,2.66392817]
[1641071023576,5.33413182,47415.0,47414.0,2.24176917]
[1641071023776,4.84413182,47415.0,47414.0,2.24176917]
[1641071024087,3.87862647,47415.0,47414.0,1.81963617]
[1641071024277,3.89915203,47415.0,47414.0,1.81963617]
[1641071024526,6.43346611,47415.0,47414.0,1.39750217]
[1641071025127,6.43346611,47415.0,47414.0,0.97537217]
[1641071025328,6.45271534,47415.0,47414.0,0.97537217]
[1641071025731,6.4136825,47415.0,47414.0,0.55324517]
[1641071026329,6.4136825,47415.0,47414.0,0.13110217]
[1641071026532,6.41400614,47415.0,47414.0,0.13110217]
[1641071027132,0.2859,47411.0,47393.0,0.05287857]
[1641071027332,1.56620647,47410.0,47393.0,0.05287857]
[1641071027533,1.67141617,47410.0,47393.0,0.00011]
[1641071027731,1.51784383,47409.0,47393.0,0.00011]
[1641071027933,1.56525353,47409.0,47393.0,0.05287842]
[1641071028133,2.62868831,47409.0,47408.0,0.00045781]
[1641071028402,2.64800118,47409.0,47408.0,0.00045781]
[1641071029903,2.54800118,47409.0,47408.0,0.00045781]
[1641071030104,1.33085166,47409.0,47408.0,0.00045781]
[1641071030306,1.29153478,47409.0,47408.0,0.00045781]
[1641071030505,1.31306614,47409.0,47408.0,0.00045781]
[1641071031204,1.31306614,47409.0,47408.0,0.00039624]
[1641071032021,1.33328019,47409.0,47408.0,0.00039624]
[1641071032222,1.31174883,47409.0,47408.0,0.00039624]
[1641071032425,1.31174883,47409.0,47408.0,0.09039624]
[1641071032426,1.28933342,47409.0,47408.0,0.09039624]
[1641071032622,1.26911937,47409.0,47408.0,0.09039624]
[1641071033023,0.30568459,47409.0,47408.0,0.09039624]
[1641071033424,0.32547597,47409.0,47408.0,0.09039624]
[1641071033625,0.30569138,47409.0,47408.0,0.09039624]
[1641071034325,0.3271186,47409.0,47408.0,0.09039624]
[1641071034527,1.0207284,47409.0,47408.0,0.09039624]
[1641071035330,1.0393506,47409.0,47408.0,0.08946451]
[1641071035529,1.01792338,47409.0,47408.0,0.08946451]
[1641071036379,1.0389921,47409.0,47408.0,0.00023781]
[1641071036579,1.0203699,47409.0,47408.0,0.00023781]
[1641071037380,1.04031157,47409.0,47408.0,0.00023781]
[1641071037782,0.32691039,47409.0,47408.0,0.00023781]
[1641071038482,0.34617515,47409.0,47408.0,0.00023781]
[1641071038685,0.30516476,47409.0,47408.0,0.00023781]
[1641071039525,0.32418421,47409.0,47408.0,0.00023781]
[1641071039729,0.30491945,47409.0,47408.0,0.00023781]
[1641071040528,1.13906711,47409.0,47408.0,0.00023781]
[1641071041430,1.15707833,47409.0,47408.0,0.00023781]
[1641071041631,1.13600236,47409.0,47408.0,0.00023781]
[1641071042430,1.15492626,47409.0,47408.0,0.00023781]
[1641071042631,1.13691504,47409.0,47408.0,0.00023781]
[1641071043476,1.15775723,47409.0,47408.0,0.00023781]
[1641071043675,1.13883333,47409.0,47408.0,0.00023781]
[1641071044676,1.1578822,47409.0,47408.0,0.00023781]
[1641071045577,1.17688977,47409.0,47408.0,0.00023781]
[1641071045778,1.13699871,47409.0,47408.0,0.00023781]
[1641071046582,1.15647823,47409.0,47408.0,0.00023781]
[1641071046779,1.13747066,47409.0,47408.0,0.00023781]
[1641071047533,1.42806825,47409.0,47408.0,0.00023781]
[1641071047731,1.40858873,47409.0,47408.0,0.00023781]
[1641071047931,1.13982266,47409.0,47408.0,0.00023781]
[1641071048129,1.40870172,47409.0,47408.0,0.00023781]
[1641071048531,1.43037529,47409.0,47408.0,0.00023781]
[1641071049533,1.45113746,47409.0,47408.0,0.00023781]
[1641071050333,1.38674686,47409.0,47408.0,0.00023781]
[1641071050531,1.40478357,47409.0,47408.0,0.00023781]
[1641071051578,1.42293909,47409.0,47408.0,0.00023781]
[1641071052278,1.42293909,47409.0,47408.0,0.00017624]
[1641071052479,1.38674686,47409.0,47408.0,0.00017624]
[1641071052680,1.4083444,47409.0,47408.0,0.00017624]
[1641071053479,1.43030522,47409.0,47408.0,0.00017624]
[1641071053680,1.40870768,47409.0,47408.0,0.00017624]
[1641071054533,1.42686894,47409.0,47408.0,0.00017624]
[1641071054731,0.98892,47408.0,47405.0,0.04914039]
[1641071054933,0.052754,47407.0,47405.0,0.04914039]
[1641071055131,0.6859,47406.0,47405.0,0.10189539]
[1641071055334,1.39905257,47406.0,47405.0,0.10189539]
[1641071056435,0.99905257,47406.0,47405.0,0.0994838]
[1641071056636,1.01966642,47406.0,47405.0,0.0994838]
[1641071057036,1.01966642,47406.0,47405.0,0.05045341]
[1641071057434,1.01966642,47406.0,47405.0,0.00011]
[1641071057635,0.32653246,47406.0,47405.0,0.00011]
[1641071057938,0.30591861,47406.0,47405.0,0.00011]
[1641071058135,0.30591861,47406.0,47405.0,0.05286413]
[1641071058384,0.59591861,47406.0,47405.0,0.05286413]
[1641071058583,0.61563492,47406.0,47405.0,0.05286413]
[1641071058984,0.32563492,47406.0,47405.0,0.05286413]
[1641071059584,1.17727082,47406.0,47405.0,0.05286413]
[1641071059786,1.1375359,47406.0,47405.0,0.05286413]
[1641071060187,1.14239144,47406.0,47405.0,0.05286413]
[1641071060689,1.16166917,47406.0,47405.0,0.05286413]
[1641071060887,1.1420446,47406.0,47405.0,0.05286413]
[1641071061687,1.16144945,47406.0,47405.0,0.05286413]
[1641071061889,1.14217172,47406.0,47405.0,0.05286413]
[1641071062334,0.31016039,47406.0,47405.0,0.05286413]
[1641071062531,0.32985631,47406.0,47405.0,0.05286413]
[1641071063736,0.3518355,47406.0,47405.0,0.05286413]
[1641071063938,0.31273473,47406.0,47405.0,0.05286413]
[1641071064335,1.14474606,47406.0,47405.0,0.05286413]
[1641071064735,0.3346024,47406.0,47405.0,0.05286413]
[1641071064935,0.31262321,47406.0,47405.0,0.05286413]
[1641071065637,0.33186114,47406.0,47405.0,0.05286413]
[1641071065888,1.02346107,47406.0,47405.0,0.05286413]
[1641071066687,1.04244169,47406.0,47405.0,0.05286413]
[1641071066890,1.02320376,47406.0,47405.0,0.05286413]
[1641071067788,1.04499348,47406.0,47405.0,0.05286413]
[1641071067991,1.02601286,47406.0,47405.0,0.05286413]
[1641071068588,1.04743234,47406.0,47405.0,0.05286413]
[1641071068789,1.02564262,47406.0,47405.0,0.05286413]
[1641071068994,0.31217502,47406.0,47405.0,0.05286413]
[1641071069741,0.33209812,47406.0,47405.0,0.05286413]
[1641071069944,0.31067864,47406.0,47405.0,0.05286413]
[1641071071049,0.31012785,47406.0,47405.0,0.05286413]
[1641071071245,1.0235943,47406.0,47405.0,0.05286413]
[1641071071743,1.04230365,47406.0,47405.0,0.05286413]
[1641071071945,1.02293134,47406.0,47405.0,0.05286413]
[1641071072744,1.04385223,47406.0,47405.0,0.05286413]
[1641071072945,1.02514288,47406.0,47405.0,0.05286413]
[1641071073376,1.02514288,47406.0,47405.0,0.05280256]
[1641071073777,0.33232527,47406.0,47405.0,0.05280256]
[1641071073978,0.31140438,47406.0,47405.0,0.05280256]
[1641071074185,1.02503922,47406.0,47405.0,0.05280256]
[1641071074781,1.04377331,47406.0,47405.0,0.05280256]
[1641071074980,1.02312447,47406.0,47405.0,0.05280256]
[1641071075781,1.04424502,47406.0,47405.0,0.05280256]
[1641071075981,1.02551093,47406.0,47405.0,0.05280256]
[1641071076385,0.31187609,47406.0,47405.0,0.05280256]
[1641071077434,1.04546356,47406.0,47405.0,0.05187083]
[1641071077634,1.02434301,47406.0,47405.0,0.05187083]
[1641071077833,1.04388985,47406.0,47405.0,0.05187083]
[1641071078034,1.02506688,47406.0,47405.0,0.05187083]
[1641071078634,0.31030238,47406.0,47405.0,0.05187083]
[1641071078839,0.33169241,47406.0,47405.0,0.05187083]
[1641071079035,0.31214557,47406.0,47405.0,0.05187083]
[1641071079236,0.02624557,47406.0,47405.0,0.05187083]
[1641071079439,0.02624557,47406.0,47405.0,0.68471083]
[1641071079838,0.04496723,47406.0,47405.0,1.02363083]
[1641071080036,0.0235772,47406.0,47405.0,1.47363083]
[1641071080636,0.0235772,47406.0,47405.0,2.59163083]
[1641071080890,0.00485554,47406.0,47405.0,2.59163083]
[1641071081294,0.02153105,47408.0,47405.0,2.59163083]
[1641071081295,0.02153105,47408.0,47405.0,2.59284874]
[1641071081493,0.02153105,47408.0,47407.0,1.50925851]
[1641071081690,0.02153105,47408.0,47407.0,2.48099851]
[1641071081892,0.03078393,47410.0,47407.0,2.09099851]
[1641071082090,0.03078393,47410.0,47409.0,1.04307751]
[1641071082292,0.03078393,47410.0,47409.0,3.13278751]
[1641071082894,0.00921837,47410.0,47409.0,3.13278751]
[1641071083295,0.00921837,47410.0,47409.0,3.18552351]
[1641071083495,0.00921837,47410.0,47409.0,3.28552351]
[1641071083693,0.00921837,47410.0,47409.0,3.38681203]
[1641071083895,0.00921837,47410.0,47409.0,3.48681203]
[1641071084393,0.02048435,47412.0,47411.0,1.170729]
[1641071084639,0.02048435,47412.0,47411.0,2.29513834]
[1641071084841,0.02055738,47412.0,47411.0,2.58201821]
[1641071085139,7.303e-05,47412.0,47411.0,2.58201821]
[1641071088789,7.303e-05,47412.0,47411.0,1.46401821]
[1641071088987,7.303e-05,47412.0,47411.0,1.98401821]
[1641071089789,7.303e-05,47412.0,47411.0,1.88401821]
[1641071089990,7.303e-05,47412.0,47411.0,2.26401821]
[1641071090588,7.303e-05,47412.0,47411.0,1.88401821]
[1641071092831,7.303e-05,47412.0,47411.0,2.73401821]
[1641071093233,7.303e-05,47412.0,47411.0,2.63401821]
[1641071093434,7.303e-05,47412.0,47411.0,1.88401821]
[1641071093834,7.303e-05,47412.0,47411.0,2.36401821]
[1641071094334,7.303e-05,47412.0,47411.0,1.36395664]
[1641071096889,7.303e-05,47412.0,47411.0,1.69395664]
[1641071097490,7.303e-05,47412.0,47411.0,1.31122764]
[1641071098490,7.303e-05,47412.0,47411.0,1.31029591]
[1641071099748,7.303e-05,47412.0,47411.0,1.68029591]
[1641071100546,7.303e-05,47412.0,47411.0,1.73302991]
[1641071103509,7.303e-05,47412.0,47411.0,1.36302991]
[1641071104810,7.303e-05,47412.0,47411.0,1.69302991]
[1641071105507,7.303e-05,47412.0,47411.0,1.36302991]
[1641071105708,7.303e-05,47412.0,47411.0,1.68302991]
[1641071105908,0.0091665,47416.0,47411.0,1.36302991]
[1641071106108,0.0091665,47416.0,47415.0,0.37578466]